Department Family,Date Paid,Expense Type,Expense Area,Supplier,Transaction Number,Amount,Vat Inclusive
Crown Prosecution Service ,04/09/23,Crown Court Very High Cost Cases Full Scheme,Mersey Cheshire Complex Casework Unit,Harrington Street Chambers,1096572/NJS43,"37,144.76",
Crown Prosecution Service ,04/09/23,Crown Court Graduated Fee Scheme,Counter Terrorism Unit: Internal Funding,St Pauls Chambers Leeds,168602,"74,611.86",Y
Crown Prosecution Service ,04/09/23,Crown Court Graduated Fee Scheme,East Midlands Complex Casework Unit,Seven Bedford Row,196122dst3,"50,643.00",Y
Crown Prosecution Service ,04/09/23,Crown Court Graduated Fee Scheme,East Midlands Complex Casework Unit,Seven Bedford Row,196122hxr,"33,098.16",Y
Crown Prosecution Service ,04/09/23,Crown Court Graduated Fee Scheme,South East Crown Court,Foundry Chambers (9-12 Bell Yard),196875/KDO,"25,790.40",Y
Crown Prosecution Service ,04/09/23,Crown Court Graduated Fee Scheme,South East Crown Court,Foundry Chambers (9-12 Bell Yard),196875/PDE - 1 2DrJ,"30,902.02",Y
Crown Prosecution Service ,04/09/23,Crown Court Graduated Fee Scheme,South West Crown Court,Guildhall Chambers Bristol,201045AV3,"34,645.68",Y
Crown Prosecution Service ,04/09/23,Crown Court Graduated Fee Scheme,East of England Crown Court,Drystone Chambers (Dyers),202943 CLM,"28,484.52",Y
Crown Prosecution Service ,04/09/23,Crown Court Graduated Fee Scheme,East of England Crown Court,Drystone Chambers (Dyers),202943 KK,"76,289.40",Y
Crown Prosecution Service ,04/09/23,Crown Court Graduated Fee Scheme,East of England Crown Court,Drystone Chambers (Dyers),204214 KK,"57,094.56",Y
Crown Prosecution Service ,04/09/23,Crown Court Graduated Fee Scheme,East Midlands Crown Court Section,36 Bedford Row,220803/MPR2,"75,427.56",Y
Crown Prosecution Service ,04/09/23,Crown Court Graduated Fee Scheme,East Midlands Crown Court Section,36 Bedford Row,220803/PP,"37,711.92",Y
Crown Prosecution Service ,04/09/23,Crown Court Graduated Fee Scheme,Yorks and Humbs CC Legal,Park Square Barristers (No 6 and Sovereign merged),526657/PMKC,"25,300.80",Y
Crown Prosecution Service ,04/09/23,Crown Court Very High Cost Cases Full Scheme,RWD North Unit,Exchange Chambers Leeds ,535033 AHQC JULY,"38,785.32",Y
Crown Prosecution Service ,04/09/23,Crown Court Graduated Fee Scheme,West Midlands Complex Casework Unit,No 5 Fountain Court Chambers,838670/MLH/,"33,495.48",Y
Crown Prosecution Service ,04/09/23,Crown Court Graduated Fee Scheme,London North Crown Court Unit,QEB Hollis Whiteman Chambers,BM 111667 a,"31,666.68",Y
Crown Prosecution Service ,04/09/23,Crown Court Graduated Fee Scheme,SEOC Team 1,5 King's Bench Walk,FH170996,"44,287.20",Y
Crown Prosecution Service ,04/09/23,Recoverable VAT control,Balance Sheet,Boxxe Ltd York,INV0029049,"50,106.67",Y
Crown Prosecution Service ,04/09/23,IT non capital software licences,Legal Reference and ICT Licenses,Boxxe Ltd York,INV0029049,"250,533.33",
Crown Prosecution Service ,04/09/23,Crown Court Graduated Fee Scheme,West Midlands Complex Casework Unit,St Philips Chambers,JDU 686379,"35,187.00",Y
Crown Prosecution Service ,04/09/23,Crown Court Graduated Fee Scheme,West Midlands Crown Court Unit,2 Harcourt Buildings,JO/117520,"45,006.82",Y
Crown Prosecution Service ,04/09/23,Crown Court Graduated Fee Scheme,West Midlands Crown Court Unit,2 Harcourt Buildings,JO/118046,"25,800.96",Y
Crown Prosecution Service ,04/09/23,Crown Court Graduated Fee Scheme,London North Complex Casework Unit,QEB Hollis Whiteman Chambers,NC 113106 a,"75,579.48",Y
Crown Prosecution Service ,04/09/23,Crown Court Graduated Fee Scheme,London North Crown Court Unit,2 Harcourt Buildings,PCS/118537,"32,308.44",Y
Crown Prosecution Service ,04/09/23,Crown Court Graduated Fee Scheme,London North Complex Casework Unit,QEB Hollis Whiteman Chambers,PDY 113106 a,"36,930.96",Y
Crown Prosecution Service ,04/09/23,Crown Court Graduated Fee Scheme,North West RASSO Unit,9 St John Street (Nine),VT 425861,"26,394.00",Y
Crown Prosecution Service ,04/09/23,Crown Court Graduated Fee Scheme,SEOC Team 1,5 King's Bench Walk,WD170996.1,"66,138.00",Y
Crown Prosecution Service ,05/09/23,External legal advice - Civil litigation,Other Corporate Programme Payments,Government Legal Department,529813,"94,549.40",Y
Crown Prosecution Service ,05/09/23,External legal advice - Civil litigation,Other Corporate Programme Payments,Government Legal Department,531044,"106,485.83",Y
Crown Prosecution Service ,05/09/23,Recoverable VAT control,Balance Sheet,Xerox (UK) Ltd,900230696,"4,370.00",Y
Crown Prosecution Service ,05/09/23,Short term leases from 2 to 12 months: IT and Equipment,Print Contract,Xerox (UK) Ltd,900230696,"21,850.00",
Crown Prosecution Service ,05/09/23,Apprenticeship Levy payments Permanent,Other Corporate Programme Payments,HM Revenue and Customs,948PB000021422405,"124,288.68",
Crown Prosecution Service ,05/09/23,Apprenticeship Levy payments Permanent,Other Corporate Admin Payments,HM Revenue and Customs,948PB000021422405,"7,933.32",
Crown Prosecution Service ,05/09/23,Crown Court Graduated Fee Scheme,West Midlands Crown Court Unit,Citadel Chambers,NCB/690511/,"39,286.20",Y
Crown Prosecution Service ,06/09/23,Recoverable VAT control,Balance Sheet,Epiq Europe Ltd (Wordwave),0000001546,"4,629.47",Y
Crown Prosecution Service ,06/09/23,Transcriptions and Translation,Other Corporate Programme Payments,Epiq Europe Ltd (Wordwave),0000001546,"23,147.35",
Crown Prosecution Service ,06/09/23,Crown Court Graduated Fee Scheme,Thames and Chiltern Complex Casework Unit,Seven Bedford Row,198307ann7,"27,091.20",Y
Crown Prosecution Service ,06/09/23,IT non capital software licences,Legal Reference and ICT Licenses,Microsoft Ltd Reading,9899288432,"238,785.60",Y
Crown Prosecution Service ,06/09/23,Crown Court Graduated Fee Scheme,Thames and Chiltern Complex Casework Unit,5 King's Bench Walk,BT178476.Trial,"35,700.00",Y
Crown Prosecution Service ,06/09/23,Crown Court Very High Cost Cases Full Scheme,London South Complex Casework Unit,Deka Chambers Ltd,JCT371773P,"37,004.40",Y
Crown Prosecution Service ,06/09/23,Crown Court Graduated Fee Scheme,Thames and Chiltern Complex Casework Unit,5 King's Bench Walk,JHKC178476.Trial,"71,406.36",Y
Crown Prosecution Service ,06/09/23,Crown Court Graduated Fee Scheme,London South Crown Court Unit,Nine Bedford Row (9 Bedford Row),KC TRIAL 146453,"25,784.28",Y
Crown Prosecution Service ,06/09/23,Other Staff Costs,Other Corporate Admin Payments,Reward Gateway (UK) Ltd,UK098844SI,"36,399.60",Y
Crown Prosecution Service ,07/09/23,Crown Court Graduated Fee Scheme,East of England Complex Casework Unit,2 Hare Court Chambers -Chambers of Orlando Pownall,116194(spr),"34,084.20",Y
Crown Prosecution Service ,08/09/23,Crown Court Graduated Fee Scheme,London North Complex Casework Unit,Furnival Chambers,168627/,"41,781.00",Y
Crown Prosecution Service ,08/09/23,Crown Court Graduated Fee Scheme,North West Complex Casework Unit,New Park Court Chambers Leeds,368802-2/GK,"27,950.52",Y
Crown Prosecution Service ,08/09/23,Crown Court Graduated Fee Scheme,North West Complex Casework Unit,New Park Court Chambers Leeds,368802-2/JPKC,"55,503.84",Y
Crown Prosecution Service ,08/09/23,Other managed/contractor services,Central Legal Training Team,Ernst & Young LLP London,GB01G000455542,"28,999.20",Y
Crown Prosecution Service ,11/09/23,Crown Court Graduated Fee Scheme,London South Complex Casework Unit,Furnival Chambers,170873/KF/,"28,270.68",Y
Crown Prosecution Service ,11/09/23,Crown Court Graduated Fee Scheme,London South Crown Court Unit,Foundry Chambers (9-12 Bell Yard),194486/JP - 1,"77,810.47",Y
Crown Prosecution Service ,11/09/23,Crown Court Graduated Fee Scheme,London South Crown Court Unit,Foundry Chambers (9-12 Bell Yard),194486/ND - 1,"32,419.80",Y
Crown Prosecution Service ,11/09/23,Crown Court Graduated Fee Scheme,Cymru Wales South East Crown Court,5 SAH Services Ltd,634850-3/MC,"47,724.00",Y
Crown Prosecution Service ,11/09/23,IT services,Other IT costs,Lumen Technologies UK Ltd,656027925/1161532,"51,727.82",Y
Crown Prosecution Service ,11/09/23,Lease liability non current lease payments,Balance Sheet,Konica Minolta Business Solutions Limited,Bulk202307,"20,790.00",
Crown Prosecution Service ,11/09/23,Recoverable VAT control,Balance Sheet,Konica Minolta Business Solutions Limited,Bulk202307,"24,559.04",Y
Crown Prosecution Service ,11/09/23,Variable lease payment expenses IT and Equipment,Print Contract,Konica Minolta Business Solutions Limited,Bulk202307,"102,005.18",
Crown Prosecution Service ,11/09/23,Recoverable VAT control,Balance Sheet,Konica Minolta Business Solutions Limited,Fleet202307,"13,220.07",Y
Crown Prosecution Service ,11/09/23,Variable lease payment expenses IT and Equipment,Print Contract,Konica Minolta Business Solutions Limited,Fleet202307,"66,100.36",
Crown Prosecution Service ,11/09/23,Recoverable VAT control,Balance Sheet,CGI IT UK Ltd,GB014113046,"215,958.02",Y
Crown Prosecution Service ,11/09/23,IT services,Apps and Hosting Contract,CGI IT UK Ltd,GB014113046,"1,079,790.09",
Crown Prosecution Service ,11/09/23,IT services,DTS Programme Project Cost,eSynergy Solutions Ltd,INV00001387,"74,995.18",Y
Crown Prosecution Service ,11/09/23,IT services,DTS Programme Project Cost,eSynergy Solutions Ltd,INV00001394,"137,986.20",Y
Crown Prosecution Service ,11/09/23,General Professional Services,DTS Programme Project Cost,Bloom Procurement Services Ltd Gateshead,SIN045430,"44,678.40",Y
Crown Prosecution Service ,11/09/23,General Professional Services,DTS Programme Project Cost,Bloom Procurement Services Ltd Gateshead,SIN045443-1,"54,366.31",Y
Crown Prosecution Service ,11/09/23,IT non capital software licences,DTS Programme Project Cost,CDW Limited London,UKSI04080052,"56,040.00",Y
Crown Prosecution Service ,12/09/23,Transcriptions and Translation,Other Corporate Programme Payments,Mendip Media Group Ltd Tiverton,0000000224,"32,736.00",
Crown Prosecution Service ,12/09/23,Recoverable VAT control,Balance Sheet,Mendip Media Group Ltd Tiverton,0000000224,"6,547.20",Y
Crown Prosecution Service ,12/09/23,Crown Court Graduated Fee Scheme,London South Crown Court Unit,Foundry Chambers (9-12 Bell Yard),194486/ND - 2,"115,364.52",Y
Crown Prosecution Service ,12/09/23,Crown Court Graduated Fee Scheme,London South RASSO,5 King's Bench Walk,CF177385.Trial,"46,017.60",Y
Crown Prosecution Service ,12/09/23,Crown Court Graduated Fee Scheme,London South RASSO,5 King's Bench Walk,FR177385.Trial,"31,177.20",Y
Crown Prosecution Service ,13/09/23,Crown Court Graduated Fee Scheme,South East Crown Court,2 Kings Bench Walk London,299777-RA,"29,740.44",
Crown Prosecution Service ,14/09/23,National non domestic rates,Estate and FM: Programme,Government Property Agency London,00000001/25201,"34,044.46",
Crown Prosecution Service ,14/09/23,Landlord service charge,Estate and FM: Programme,Government Property Agency London,00000001/25201,"45,627.77",
Crown Prosecution Service ,14/09/23,Property management fees,Estate and FM: Programme,Government Property Agency London,00000001/25201,"10,424.58",Y
Crown Prosecution Service ,14/09/23,Short term leases from 2 to 12 months: Property,Estate and FM: Programme,Government Property Agency London,00000001/25201,"57,402.60",
Crown Prosecution Service ,14/09/23,Short term leases from 2 to 12 months: Property,Estate and FM: Programme,Government Property Agency London,00000001/26012,"57,402.60",
Crown Prosecution Service ,14/09/23,Property management fees,Estate and FM: Programme,Government Property Agency London,00000001/26012,"10,424.58",Y
Crown Prosecution Service ,14/09/23,Landlord service charge,Estate and FM: Programme,Government Property Agency London,00000001/26012,"45,627.77",
Crown Prosecution Service ,14/09/23,National non domestic rates,Estate and FM: Programme,Government Property Agency London,00000001/26012,"29,159.24",
Crown Prosecution Service ,14/09/23,Landlord service charge,Estate and FM: Programme,Government Property Agency London,00000001/27735,"73,545.05",
Crown Prosecution Service ,14/09/23,Landlord service charge,Estate and FM: Administration,Government Property Agency London,00000001/27735,"73,545.05",
Crown Prosecution Service ,14/09/23,Landlord service charge,Estate and FM: Programme,Government Property Agency London,00000001/27747,"38,269.47",
Crown Prosecution Service ,14/09/23,Landlord service charge,Estate and FM: Programme,Government Property Agency London,00000001/27748,"191,337.54",
Crown Prosecution Service ,14/09/23,Landlord service charge,Estate and FM: Programme,Government Property Agency London,00000001/27750,"27,039.08",
Crown Prosecution Service ,14/09/23,Landlord service charge,Estate and FM: Programme,Government Property Agency London,00000001/27753,"26,515.67",
Crown Prosecution Service ,14/09/23,National non domestic rates,Estate and FM: Programme,Government Property Agency London,00000001/27762,"134,862.05",
Crown Prosecution Service ,14/09/23,National non domestic rates,Estate and FM: Programme,Government Property Agency London,00000001/27772,"146,786.89",
Crown Prosecution Service ,14/09/23,Landlord service charge,Estate and FM: Programme,Government Property Agency London,00000001/27818,"33,788.87",
Crown Prosecution Service ,14/09/23,National non domestic rates,Estate and FM: Programme,Government Property Agency London,00000001/28062,"52,528.61",
Crown Prosecution Service ,14/09/23,Property management fees,Estate and FM: Programme,Government Property Agency London,00000001/28062,"4,506.00",Y
Crown Prosecution Service ,14/09/23,Short term leases from 2 to 12 months: Property,Estate and FM: Programme,Government Property Agency London,00000001/28062,"106,451.25",
Crown Prosecution Service ,14/09/23,Landlord service charge,Estate and FM: Programme,Government Property Agency London,00000001/28063,"1,416.04",
Crown Prosecution Service ,14/09/23,Lease liability non current lease payments,Balance Sheet,Government Property Agency London,00000001/28063,"23,429.25",
Crown Prosecution Service ,14/09/23,Property management fees,Estate and FM: Programme,Government Property Agency London,00000001/28063,"10,418.75",Y
Crown Prosecution Service ,14/09/23,National non domestic rates,Estate and FM: Programme,Government Property Agency London,00000001/28063,"13,980.29",
Crown Prosecution Service ,14/09/23,Lease liability non current lease payments,Balance Sheet,Government Property Agency London,00000001/28064,"59,760.60",
Crown Prosecution Service ,14/09/23,Landlord service charge,Estate and FM: Programme,Government Property Agency London,00000001/28064,"30,044.66",
Crown Prosecution Service ,14/09/23,Property management fees,Estate and FM: Programme,Government Property Agency London,00000001/28064,"4,506.00",Y
Crown Prosecution Service ,14/09/23,National non domestic rates,Estate and FM: Programme,Government Property Agency London,00000001/28064,"24,819.54",
Crown Prosecution Service ,14/09/23,National non domestic rates,Estate and FM: Programme,Government Property Agency London,00000001/28066,"27,776.00",
Crown Prosecution Service ,14/09/23,Lease liability non current lease payments,Balance Sheet,Government Property Agency London,00000001/28066,"87,000.00",
Crown Prosecution Service ,14/09/23,Property management fees,Estate and FM: Programme,Government Property Agency London,00000001/28066,"12,476.51",Y
Crown Prosecution Service ,14/09/23,Landlord service charge,Estate and FM: Programme,Government Property Agency London,00000001/28066,"3,116.60",
Crown Prosecution Service ,14/09/23,Property management fees,Estate and FM: Programme,Government Property Agency London,00000001/28067,"8,252.17",Y
Crown Prosecution Service ,14/09/23,National non domestic rates,Estate and FM: Programme,Government Property Agency London,00000001/28067,"15,744.00",
Crown Prosecution Service ,14/09/23,Short term leases from 2 to 12 months: Property,Estate and FM: Programme,Government Property Agency London,00000001/28067,"48,123.00",
Crown Prosecution Service ,14/09/23,Landlord service charge,Estate and FM: Programme,Government Property Agency London,00000001/28067,"25,777.03",
Crown Prosecution Service ,14/09/23,National non domestic rates,Estate and FM: Programme,Government Property Agency London,00000001/28068,"9,261.01",
Crown Prosecution Service ,14/09/23,Property management fees,Estate and FM: Programme,Government Property Agency London,00000001/28068,"7,088.80",Y
Crown Prosecution Service ,14/09/23,Landlord service charge,Estate and FM: Programme,Government Property Agency London,00000001/28068,"28,794.77",
Crown Prosecution Service ,14/09/23,Lease liability non current lease payments,Balance Sheet,Government Property Agency London,00000001/28068,"32,778.00",
Crown Prosecution Service ,14/09/23,National non domestic rates,Estate and FM: Programme,Government Property Agency London,00000001/28069,"23,501.75",
Crown Prosecution Service ,14/09/23,Landlord service charge,Estate and FM: Programme,Government Property Agency London,00000001/28069,"4,959.78",
Crown Prosecution Service ,14/09/23,Property management fees,Estate and FM: Programme,Government Property Agency London,00000001/28069,"7,145.27",Y
Crown Prosecution Service ,14/09/23,Lease liability non current lease payments,Balance Sheet,Government Property Agency London,00000001/28069,"69,372.10",
Crown Prosecution Service ,14/09/23,Lease liability non current lease payments,Balance Sheet,Government Property Agency London,00000001/28070,"74,220.00",
Crown Prosecution Service ,14/09/23,Landlord service charge,Estate and FM: Programme,Government Property Agency London,00000001/28070,"28,970.24",
Crown Prosecution Service ,14/09/23,Property management fees,Estate and FM: Programme,Government Property Agency London,00000001/28070,"7,967.54",Y
Crown Prosecution Service ,14/09/23,National non domestic rates,Estate and FM: Programme,Government Property Agency London,00000001/28070,"26,398.10",
Crown Prosecution Service ,14/09/23,Property management fees,Estate and FM: Programme,Government Property Agency London,00000001/28071,"6,929.53",Y
Crown Prosecution Service ,14/09/23,Landlord service charge,Estate and FM: Programme,Government Property Agency London,00000001/28071,"18,833.48",
Crown Prosecution Service ,14/09/23,Lease liability non current lease payments,Balance Sheet,Government Property Agency London,00000001/28071,"51,967.50",
Crown Prosecution Service ,14/09/23,National non domestic rates,Estate and FM: Programme,Government Property Agency London,00000001/28071,"17,161.33",
Crown Prosecution Service ,14/09/23,Lease liability non current lease payments,Balance Sheet,Government Property Agency London,00000001/28073,"89,856.60",
Crown Prosecution Service ,14/09/23,National non domestic rates,Estate and FM: Programme,Government Property Agency London,00000001/28073,"35,503.75",
Crown Prosecution Service ,14/09/23,Property management fees,Estate and FM: Programme,Government Property Agency London,00000001/28073,"8,203.24",Y
Crown Prosecution Service ,14/09/23,Landlord service charge,Estate and FM: Programme,Government Property Agency London,00000001/28073,"38,864.85",
Crown Prosecution Service ,14/09/23,Short term leases from 2 to 12 months: Property,Estate and FM: Programme,Government Property Agency London,00000001/28077,"210,288.00",
Crown Prosecution Service ,14/09/23,Property management fees,Estate and FM: Programme,Government Property Agency London,00000001/28077,"16,104.84",Y
Crown Prosecution Service ,14/09/23,Landlord service charge,Estate and FM: Programme,Government Property Agency London,00000001/28077,"96,690.80",
Crown Prosecution Service ,14/09/23,National non domestic rates,Estate and FM: Programme,Government Property Agency London,00000001/28077,"65,651.94",
Crown Prosecution Service ,14/09/23,Lease liability non current lease payments,Balance Sheet,Government Property Agency London,00000001/28078,"156,900.00",
Crown Prosecution Service ,14/09/23,Property management fees,Estate and FM: Programme,Government Property Agency London,00000001/28078,"15,642.88",Y
Crown Prosecution Service ,14/09/23,Landlord service charge,Estate and FM: Programme,Government Property Agency London,00000001/28078,"16,152.99",
Crown Prosecution Service ,14/09/23,National non domestic rates,Estate and FM: Programme,Government Property Agency London,00000001/28078,"51,221.25",
Crown Prosecution Service ,14/09/23,Lease liability non current lease payments,Balance Sheet,Government Property Agency London,00000001/28080,"244,327.50",
Crown Prosecution Service ,14/09/23,Property management fees,Estate and FM: Programme,Government Property Agency London,00000001/28080,"15,375.55",Y
Crown Prosecution Service ,14/09/23,Landlord service charge,Estate and FM: Programme,Government Property Agency London,00000001/28080,"94,851.95",
Crown Prosecution Service ,14/09/23,National non domestic rates,Estate and FM: Programme,Government Property Agency London,00000001/28080,"81,403.05",
Crown Prosecution Service ,14/09/23,Property management fees,Estate and FM: Programme,Government Property Agency London,00000001/28082,"4,506.00",Y
Crown Prosecution Service ,14/09/23,Lease liability non current lease payments,Balance Sheet,Government Property Agency London,00000001/28082,"26,746.38",
Crown Prosecution Service ,14/09/23,Landlord service charge,Estate and FM: Programme,Government Property Agency London,00000001/28083,"50,425.25",
Crown Prosecution Service ,14/09/23,Lease liability non current lease payments,Balance Sheet,Government Property Agency London,00000001/28083,"17,465.81",
Crown Prosecution Service ,14/09/23,Property management fees,Estate and FM: Programme,Government Property Agency London,00000001/28083,628.75,Y
Crown Prosecution Service ,14/09/23,National non domestic rates,Estate and FM: Programme,Government Property Agency London,00000001/28173,"23,118.02",
Crown Prosecution Service ,14/09/23,Short term leases from 2 to 12 months: Property,Estate and FM: Programme,Government Property Agency London,00000001/28173,"57,402.60",
Crown Prosecution Service ,14/09/23,Landlord service charge,Estate and FM: Programme,Government Property Agency London,00000001/28173,"45,627.77",
Crown Prosecution Service ,14/09/23,Property management fees,Estate and FM: Programme,Government Property Agency London,00000001/28173,"10,424.58",Y
Crown Prosecution Service ,14/09/23,Lease liability non current lease payments,Balance Sheet,Government Property Agency London,00000001/28184,"46,262.59",
Crown Prosecution Service ,14/09/23,Lease liability non current lease payments,Balance Sheet,Government Property Agency London,00000001/28192,"28,096.25",
Crown Prosecution Service ,14/09/23,Right of use asset clearing Buildings,Balance Sheet,Government Property Agency London,00000001/28206,"28,498.88",
Crown Prosecution Service ,14/09/23,New Works: non capital,Estate and FM: Programme,Government Property Agency London,00000001/28213,"149,708.85",
Crown Prosecution Service ,14/09/23,New Works: non capital,Estate and FM: Programme,Government Property Agency London,00000001/28214,"158,384.40",
Crown Prosecution Service ,14/09/23,New Works: non capital,Estate and FM: Programme,Government Property Agency London,00000001/28215,"116,774.50",
Crown Prosecution Service ,14/09/23,Landlord service charge,Estate and FM: Programme,Government Property Agency London,00000001/28419,"17,804.32",
Crown Prosecution Service ,14/09/23,Property management fees,Estate and FM: Programme,Government Property Agency London,00000001/28419,"7,235.63",Y
Crown Prosecution Service ,14/09/23,National non domestic rates,Estate and FM: Programme,Government Property Agency London,00000001/28419,"14,592.00",
Crown Prosecution Service ,14/09/23,Short term leases from 2 to 12 months: Property,Estate and FM: Programme,Government Property Agency London,00000001/28419,"35,100.00",
Crown Prosecution Service ,14/09/23,National non domestic rates,Estate and FM: Programme,Government Property Agency London,00000001/28420,"4,167.44",
Crown Prosecution Service ,14/09/23,Property management fees,Estate and FM: Programme,Government Property Agency London,00000001/28420,"6,249.19",Y
Crown Prosecution Service ,14/09/23,Short term leases from 2 to 12 months: Property,Estate and FM: Programme,Government Property Agency London,00000001/28420,"11,687.50",
Crown Prosecution Service ,14/09/23,Landlord service charge,Estate and FM: Programme,Government Property Agency London,00000001/28420,"3,844.68",
Crown Prosecution Service ,14/09/23,Property management fees,Estate and FM: Programme,Government Property Agency London,00000001/28421,"7,741.49",Y
Crown Prosecution Service ,14/09/23,National non domestic rates,Estate and FM: Programme,Government Property Agency London,00000001/28421,"5,760.08",
Crown Prosecution Service ,14/09/23,Lease liability non current lease payments,Balance Sheet,Government Property Agency London,00000001/28421,"17,383.30",
Crown Prosecution Service ,14/09/23,Short term leases from 2 to 12 months: Property,Estate and FM: Programme,Government Property Agency London,00000001/28422,"47,000.00",
Crown Prosecution Service ,14/09/23,Landlord service charge,Estate and FM: Programme,Government Property Agency London,00000001/28422,"11,351.25",
Crown Prosecution Service ,14/09/23,Property management fees,Estate and FM: Programme,Government Property Agency London,00000001/28422,"9,291.31",Y
Crown Prosecution Service ,14/09/23,National non domestic rates,Estate and FM: Programme,Government Property Agency London,00000001/28422,"18,688.00",
Crown Prosecution Service ,15/09/23,Crown Court Graduated Fee Scheme,London South Complex Casework Unit,6 Kings Bench Walk- Chambers of D Fisher & D Perry,103495 LO1,"57,421.80",Y
Crown Prosecution Service ,15/09/23,Crown Court Graduated Fee Scheme,London South Complex Casework Unit,Furnival Chambers,170873/,"42,097.80",Y
Crown Prosecution Service ,15/09/23,Crown Court Graduated Fee Scheme,North West RASSO Unit,15 Winckley Square Chambers,DT 265602-6,"28,350.72",Y
Crown Prosecution Service ,15/09/23,Crown Court Graduated Fee Scheme,London North Crown Court Unit,QEB Hollis Whiteman Chambers,SL 113896 a,"27,668.52",Y
Crown Prosecution Service ,19/09/23,Crown Court Graduated Fee Scheme,North West Crown Court Hub,Harrington Street Chambers,1172662/AL,"28,116.60",
Crown Prosecution Service ,19/09/23,Crown Court Graduated Fee Scheme,London North Complex Casework Unit,Mountford Chambers ,176725-AKQ,"52,886.16",Y
Crown Prosecution Service ,19/09/23,Crown Court Very High Cost Cases Full Scheme,East Midlands Complex Casework Unit,36 Bedford Row,215623-JEC-Stage 5,"60,419.24",Y
Crown Prosecution Service ,19/09/23,Crown Court Graduated Fee Scheme,North West RASSO Unit,Exchange Chambers - Liverpool,562592 - PTE CLAIM 3,"38,891.28",Y
Crown Prosecution Service ,19/09/23,Crown Court Graduated Fee Scheme,Thames Chiltern Crown Court Unit,5 King's Bench Walk,CNKC176543.Trial2,"84,016.06",Y
Crown Prosecution Service ,19/09/23,UK Hotels,DID DTS Technology,Clarity Travel Management,CPSHQ030923,381.00,Y
Crown Prosecution Service ,19/09/23,UK Hotels,Victim Transformation Prog,Clarity Travel Management,CPSHQ030923,168.00,Y
Crown Prosecution Service ,19/09/23,UK Hotels,PF Learning and Development General,Clarity Travel Management,CPSHQ030923,486.24,Y
Crown Prosecution Service ,19/09/23,UK Hotels,Press Office,Clarity Travel Management,CPSHQ030923,65.01,Y
Crown Prosecution Service ,19/09/23,UK Hotels,Permanent Transfer Costs,Clarity Travel Management,CPSHQ030923,200.65,Y
Crown Prosecution Service ,19/09/23,UK Hotels,Corporate Communication,Clarity Travel Management,CPSHQ030923,543.61,Y
Crown Prosecution Service ,19/09/23,UK Hotels,Operational Business Support,Clarity Travel Management,CPSHQ030923,408.40,Y
Crown Prosecution Service ,19/09/23,UK Hotels,Central Operational Training,Clarity Travel Management,CPSHQ030923,152.01,Y
Crown Prosecution Service ,19/09/23,UK Hotels,DID Operational Process,Clarity Travel Management,CPSHQ030923,157.98,Y
Crown Prosecution Service ,19/09/23,UK Hotels,DID DTS Change,Clarity Travel Management,CPSHQ030923,"3,787.70",Y
Crown Prosecution Service ,19/09/23,UK Hotels,Strategy and Policy,Clarity Travel Management,CPSHQ030923,74.01,Y
Crown Prosecution Service ,19/09/23,UK Hotels,Central Legal Training Team,Clarity Travel Management,CPSHQ030923,"1,163.40",Y
Crown Prosecution Service ,19/09/23,UK Hotels,DID Central Leadership Team,Clarity Travel Management,CPSHQ030923,132.00,Y
Crown Prosecution Service ,19/09/23,UK National rail travel,DID DTS Technology,Clarity Travel Management,CPSHQ030923,"1,394.80",
Crown Prosecution Service ,19/09/23,UK National rail travel,Strategy and Policy,Clarity Travel Management,CPSHQ030923,"1,167.90",
Crown Prosecution Service ,19/09/23,UK National rail travel,CFO Fin System Change and Costings,Clarity Travel Management,CPSHQ030923,121.90,
Crown Prosecution Service ,19/09/23,UK National rail travel,CFO Strategic Financial Planning,Clarity Travel Management,CPSHQ030923,521.60,
Crown Prosecution Service ,19/09/23,UK National rail travel,DID Operational Process,Clarity Travel Management,CPSHQ030923,416.50,
Crown Prosecution Service ,19/09/23,UK National rail travel,PF Analytics and Workforce Plan,Clarity Travel Management,CPSHQ030923,72.50,
Crown Prosecution Service ,19/09/23,UK National rail travel,Private Office,Clarity Travel Management,CPSHQ030923,228.20,
Crown Prosecution Service ,19/09/23,UK National rail travel,Operational Performance,Clarity Travel Management,CPSHQ030923,"1,348.90",
Crown Prosecution Service ,19/09/23,UK National rail travel,DID Central Leadership Team,Clarity Travel Management,CPSHQ030923,"1,283.00",
Crown Prosecution Service ,19/09/23,UK National rail travel,PF HR Systems and Information,Clarity Travel Management,CPSHQ030923,59.50,
Crown Prosecution Service ,19/09/23,UK National rail travel,DID Security and Information,Clarity Travel Management,CPSHQ030923,"1,836.85",
Crown Prosecution Service ,19/09/23,UK National rail travel,PF Resourcing,Clarity Travel Management,CPSHQ030923,112.50,
Crown Prosecution Service ,19/09/23,UK National rail travel,DID DTS Change,Clarity Travel Management,CPSHQ030923,"1,785.30",
Crown Prosecution Service ,19/09/23,UK National rail travel,CFO Commercial,Clarity Travel Management,CPSHQ030923,74.20,
Crown Prosecution Service ,19/09/23,UK National rail travel,Director of Legal Services,Clarity Travel Management,CPSHQ030923,983.50,
Crown Prosecution Service ,19/09/23,UK National rail travel,PF People and Business Change,Clarity Travel Management,CPSHQ030923,137.80,
Crown Prosecution Service ,19/09/23,UK National rail travel,Central Operational Training,Clarity Travel Management,CPSHQ030923,369.40,
Crown Prosecution Service ,19/09/23,UK National rail travel,CFO Finance Operations,Clarity Travel Management,CPSHQ030923,27.90,
Crown Prosecution Service ,19/09/23,UK National rail travel,PF HR Operations,Clarity Travel Management,CPSHQ030923,"1,133.00",
Crown Prosecution Service ,19/09/23,UK National rail travel,PF HR Business Partnering,Clarity Travel Management,CPSHQ030923,177.60,
Crown Prosecution Service ,19/09/23,UK National rail travel,Chief Finance Officer,Clarity Travel Management,CPSHQ030923,652.85,
Crown Prosecution Service ,19/09/23,UK National rail travel,DTUS,Clarity Travel Management,CPSHQ030923,86.50,
Crown Prosecution Service ,19/09/23,UK National rail travel,Operational Change,Clarity Travel Management,CPSHQ030923,901.70,
Crown Prosecution Service ,19/09/23,UK National rail travel,Victim Transformation Prog,Clarity Travel Management,CPSHQ030923,75.20,
Crown Prosecution Service ,19/09/23,UK National rail travel,Operational Business Support,Clarity Travel Management,CPSHQ030923,"1,063.00",
Crown Prosecution Service ,19/09/23,UK National rail travel,PF Learning and Development General,Clarity Travel Management,CPSHQ030923,"1,467.10",
Crown Prosecution Service ,19/09/23,UK National rail travel,Central Legal Training Team,Clarity Travel Management,CPSHQ030923,"1,019.80",
Crown Prosecution Service ,19/09/23,UK National rail travel,Corporate Communication,Clarity Travel Management,CPSHQ030923,"1,227.90",
Crown Prosecution Service ,19/09/23,UK National rail travel,Permanent Transfer Costs,Clarity Travel Management,CPSHQ030923,261.10,
Crown Prosecution Service ,19/09/23,UK National rail travel,CFO Estates,Clarity Travel Management,CPSHQ030923,58.40,
Crown Prosecution Service ,19/09/23,UK Hotels,Central Legal Training Team,Clarity Travel Management,CPSHQ100923,"1,349.75",Y
Crown Prosecution Service ,19/09/23,UK Hotels,PF People and Business Change,Clarity Travel Management,CPSHQ100923,125.20,Y
Crown Prosecution Service ,19/09/23,UK Hotels,Operational Change,Clarity Travel Management,CPSHQ100923,480.55,Y
Crown Prosecution Service ,19/09/23,UK Hotels,DID DTS Technology,Clarity Travel Management,CPSHQ100923,"3,296.90",Y
Crown Prosecution Service ,19/09/23,UK Hotels,Private Office,Clarity Travel Management,CPSHQ100923,189.12,Y
Crown Prosecution Service ,19/09/23,UK Hotels,Operational Business Support,Clarity Travel Management,CPSHQ100923,358.61,Y
Crown Prosecution Service ,19/09/23,UK Hotels,DID DTS Change,Clarity Travel Management,CPSHQ100923,"1,653.18",Y
Crown Prosecution Service ,19/09/23,UK Hotels,Court Business Unit,Clarity Travel Management,CPSHQ100923,269.11,Y
Crown Prosecution Service ,19/09/23,UK Hotels,DID Central Leadership Team,Clarity Travel Management,CPSHQ100923,178.50,Y
Crown Prosecution Service ,19/09/23,UK Hotels,Operational Performance,Clarity Travel Management,CPSHQ100923,197.20,Y
Crown Prosecution Service ,19/09/23,UK Hotels,PF Learning and Development General,Clarity Travel Management,CPSHQ100923,253.50,Y
Crown Prosecution Service ,19/09/23,UK Hotels,Strategy and Policy,Clarity Travel Management,CPSHQ100923,757.80,Y
Crown Prosecution Service ,19/09/23,UK Hotels,DTUS,Clarity Travel Management,CPSHQ100923,199.49,Y
Crown Prosecution Service ,19/09/23,UK Hotels,Director of Legal Services,Clarity Travel Management,CPSHQ100923,89.50,Y
Crown Prosecution Service ,19/09/23,UK Hotels,DID Operational Process,Clarity Travel Management,CPSHQ100923,199.95,Y
Crown Prosecution Service ,19/09/23,UK Hotels,PF HR Business Partnering,Clarity Travel Management,CPSHQ100923,204.84,Y
Crown Prosecution Service ,19/09/23,UK Hotels,Permanent Transfer Costs,Clarity Travel Management,CPSHQ100923,249.00,Y
Crown Prosecution Service ,19/09/23,UK Hotels,Victim Transformation Prog,Clarity Travel Management,CPSHQ100923,631.89,Y
Crown Prosecution Service ,19/09/23,UK Air travel,Chief Finance Officer,Clarity Travel Management,CPSHQ100923,241.53,
Crown Prosecution Service ,19/09/23,UK National rail travel,PF HR Business Management,Clarity Travel Management,CPSHQ100923,704.30,
Crown Prosecution Service ,19/09/23,UK National rail travel,Operational Change,Clarity Travel Management,CPSHQ100923,931.70,
Crown Prosecution Service ,19/09/23,UK National rail travel,Permanent Transfer Costs,Clarity Travel Management,CPSHQ100923,204.80,
Crown Prosecution Service ,19/09/23,UK National rail travel,DID Central Leadership Team,Clarity Travel Management,CPSHQ100923,320.50,
Crown Prosecution Service ,19/09/23,UK National rail travel,Chief Finance Officer,Clarity Travel Management,CPSHQ100923,"1,905.85",
Crown Prosecution Service ,19/09/23,UK National rail travel,PF HR Operations,Clarity Travel Management,CPSHQ100923,711.90,
Crown Prosecution Service ,19/09/23,UK National rail travel,PF HR Systems and Information,Clarity Travel Management,CPSHQ100923,145.10,
Crown Prosecution Service ,19/09/23,UK National rail travel,DID Security and Information,Clarity Travel Management,CPSHQ100923,"1,739.10",
Crown Prosecution Service ,19/09/23,UK National rail travel,DID Operational Process,Clarity Travel Management,CPSHQ100923,"1,057.20",
Crown Prosecution Service ,19/09/23,UK National rail travel,CFO Strategic Financial Planning,Clarity Travel Management,CPSHQ100923,936.95,
Crown Prosecution Service ,19/09/23,UK National rail travel,DID DTS Technology,Clarity Travel Management,CPSHQ100923,"2,230.40",
Crown Prosecution Service ,19/09/23,UK National rail travel,DID DTS Change,Clarity Travel Management,CPSHQ100923,"2,354.20",
Crown Prosecution Service ,19/09/23,UK National rail travel,CFO Finance Operations,Clarity Travel Management,CPSHQ100923,127.60,
Crown Prosecution Service ,19/09/23,UK National rail travel,CFO Commercial,Clarity Travel Management,CPSHQ100923,909.70,
Crown Prosecution Service ,19/09/23,UK National rail travel,Central Legal Training Team,Clarity Travel Management,CPSHQ100923,"2,321.80",
Crown Prosecution Service ,19/09/23,UK National rail travel,PF Analytics and Workforce Plan,Clarity Travel Management,CPSHQ100923,235.10,
Crown Prosecution Service ,19/09/23,UK National rail travel,Operational Performance,Clarity Travel Management,CPSHQ100923,704.10,
Crown Prosecution Service ,19/09/23,UK National rail travel,CFO Financial Reporting,Clarity Travel Management,CPSHQ100923,41.80,
Crown Prosecution Service ,19/09/23,UK National rail travel,Operational Business Support,Clarity Travel Management,CPSHQ100923,116.70,
Crown Prosecution Service ,19/09/23,UK National rail travel,PF Legal Training,Clarity Travel Management,CPSHQ100923,197.30,
Crown Prosecution Service ,19/09/23,UK National rail travel,Compliance and Assurance,Clarity Travel Management,CPSHQ100923,98.70,
Crown Prosecution Service ,19/09/23,UK National rail travel,CFO Estates,Clarity Travel Management,CPSHQ100923,495.50,
Crown Prosecution Service ,19/09/23,UK National rail travel,Strategy and Policy,Clarity Travel Management,CPSHQ100923,120.90,
Crown Prosecution Service ,19/09/23,UK National rail travel,PF People and Business Change,Clarity Travel Management,CPSHQ100923,620.70,
Crown Prosecution Service ,19/09/23,UK National rail travel,PF HR Business Management,Clarity Travel Management,CPSHQ100923,73.40,
Crown Prosecution Service ,19/09/23,UK National rail travel,CFO Fin System Change and Costings,Clarity Travel Management,CPSHQ100923,112.60,
Crown Prosecution Service ,19/09/23,UK National rail travel,Private Office,Clarity Travel Management,CPSHQ100923,759.20,
Crown Prosecution Service ,19/09/23,UK National rail travel,PF Resourcing,Clarity Travel Management,CPSHQ100923,207.50,
Crown Prosecution Service ,19/09/23,UK National rail travel,PF HR Business Partnering,Clarity Travel Management,CPSHQ100923,639.70,
Crown Prosecution Service ,19/09/23,UK National rail travel,PF Learning and Development General,Clarity Travel Management,CPSHQ100923,650.20,
Crown Prosecution Service ,19/09/23,UK National rail travel,Court Business Unit,Clarity Travel Management,CPSHQ100923,24.90,
Crown Prosecution Service ,19/09/23,UK National rail travel,DTUS,Clarity Travel Management,CPSHQ100923,130.80,
Crown Prosecution Service ,19/09/23,UK National rail travel,Corporate Communication,Clarity Travel Management,CPSHQ100923,962.20,
Crown Prosecution Service ,19/09/23,IT services,DTS Programme Project Cost,CGI IT UK Ltd,GB014113362,"29,649.70",Y
Crown Prosecution Service ,19/09/23,Recoverable VAT control,Balance Sheet,CGI IT UK Ltd,GB014113496,"18,583.11",Y
Crown Prosecution Service ,19/09/23,IT services,Service Desk Contract,CGI IT UK Ltd,GB014113496,"92,915.56",
Crown Prosecution Service ,19/09/23,Recoverable VAT control,Balance Sheet,FlyForm LTD Cardiff,INV-11523,"4,879.21",Y
Crown Prosecution Service ,19/09/23,IT services,DTS Programme Project Cost,FlyForm LTD Cardiff,INV-11523,"24,395.99",
Crown Prosecution Service ,19/09/23,Crown Court Very High Cost Cases Full Scheme,London South Complex Casework Unit,Deka Chambers Ltd,JO371773M,"31,089.20",Y
Crown Prosecution Service ,19/09/23,Higher Court Very High Cost Cases Full Scheme,Appeals and Review Unit,QEB Hollis Whiteman Chambers,WB 109197 9,"38,481.60",Y
Crown Prosecution Service ,20/09/23,New Works: non capital,Estate and FM: Programme,Government Property Agency London,00000001/26827,"27,133.89",
Crown Prosecution Service ,20/09/23,Crown Court Graduated Fee Scheme,North East Crown Court Unit,Trinity Chambers,0000008000,"29,015.16",Y
Crown Prosecution Service ,20/09/23,Crown Court Graduated Fee Scheme,East of England Complex Casework Unit,Foundry Chambers (9-12 Bell Yard),198583/PDE,"30,975.94",Y
Crown Prosecution Service ,20/09/23,Crown Court Graduated Fee Scheme,East of England Complex Casework Unit,Foundry Chambers (9-12 Bell Yard),198583/WH - 2,"52,882.38",Y
Crown Prosecution Service ,20/09/23,Crown Court Graduated Fee Scheme,London South Complex Casework Unit,5 King's Bench Walk,CF175385.Trial,"85,283.40",Y
Crown Prosecution Service ,21/09/23,Crown Court Graduated Fee Scheme,London North Complex Casework Unit,QEB Hollis Whiteman Chambers,EBKC 112958,"45,557.52",Y
Crown Prosecution Service ,21/09/23,Crown Court Graduated Fee Scheme,London North Complex Casework Unit,QEB Hollis Whiteman Chambers,WB 113168,"49,759.56",Y
Crown Prosecution Service ,22/09/23,Crown Court Graduated Fee Scheme,West Midlands Complex Casework Unit,No 5 Fountain Court Chambers,839266/CAS/,"29,531.88",Y
Crown Prosecution Service ,22/09/23,Crown Court Graduated Fee Scheme,West Midlands Complex Casework Unit,No 5 Fountain Court Chambers,839266/SSL/,"39,804.72",
Crown Prosecution Service ,25/09/23,Crown Court Graduated Fee Scheme,East Midlands Crown Court Section,Seven Bedford Row,195741ct0,"128,387.56",Y
Crown Prosecution Service ,25/09/23,Crown Court Graduated Fee Scheme,South East RASSO Unit,Foundry Chambers (9-12 Bell Yard),200427/JS,"34,855.02",Y
Crown Prosecution Service ,25/09/23,Crown Court Graduated Fee Scheme,RWD Midlands Wales Unit,23 Essex Street Chambers,203881-FF,"27,295.87",Y
Crown Prosecution Service ,25/09/23,Crown Court Graduated Fee Scheme,Thames and Chiltern Complex Casework Unit,36 Bedford Row,216402/JAB4,"34,717.86",Y
Crown Prosecution Service ,25/09/23,Crown Court Graduated Fee Scheme,Mersey Cheshire Crown Court Unit,Atlantic Chambers,358860/JBKC,"37,700.40",Y
Crown Prosecution Service ,25/09/23,Crown Court Graduated Fee Scheme,Counter Terrorism Unit: Internal Funding,New Park Court Chambers Leeds,369842/ARB,"38,436.10",Y
Crown Prosecution Service ,25/09/23,Crown Court Graduated Fee Scheme,Thames Chiltern Crown Court Unit,5 King's Bench Walk,CNKC176543.T1,"39,333.00",Y
Crown Prosecution Service ,25/09/23,Recoverable VAT control,Balance Sheet,CGI IT UK Ltd,GB014113640,"167,666.74",Y
Crown Prosecution Service ,25/09/23,Intangibles asset purchase clearing CMS,DTS ICT Capital Expenditure,CGI IT UK Ltd,GB014113640,"838,333.71",
Crown Prosecution Service ,25/09/23,Intangibles asset purchase clearing CMS,DTS ICT Capital Expenditure,CGI IT UK Ltd,GB014113661,"179,951.00",
Crown Prosecution Service ,25/09/23,Recoverable VAT control,Balance Sheet,CGI IT UK Ltd,GB014113661,"35,990.20",Y
Crown Prosecution Service ,25/09/23,IT services,DTS Programme Project Cost,CGI IT UK Ltd,GB014113748,"37,315.56",Y
Crown Prosecution Service ,25/09/23,Crown Court Graduated Fee Scheme,London North Crown Court Unit,5 King's Bench Walk,JB 176547 TRIAL,"36,777.60",Y
Crown Prosecution Service ,26/09/23,Recoverable VAT control,Balance Sheet,Trustmarque Solutions Ltd,2370537,"704,330.21",Y
Crown Prosecution Service ,26/09/23,IT non capital software licences,Legal Reference and ICT Licenses,Trustmarque Solutions Ltd,2370537,"3,521,651.00",
Crown Prosecution Service ,26/09/23,Doctors Fees,East Midlands Crown Court Section,,8488,"40,060.00",Y
Crown Prosecution Service ,26/09/23,Recoverable VAT control,Balance Sheet,Bray Leino Ltd Devon,SI0039499BLE,"4,427.64",Y
Crown Prosecution Service ,26/09/23,General Professional Services,IAP Conference,Bray Leino Ltd Devon,SI0039499BLE,"22,138.19",
Crown Prosecution Service ,27/09/23,Crown Court Graduated Fee Scheme,West Midlands Complex Casework Unit,Thomas Bingham Chambers - (33 Bedford Row),117614 / DNKC,"34,028.64",
Crown Prosecution Service ,27/09/23,Crown Court Graduated Fee Scheme,South East Complex Casework Unit,23 Essex Street Chambers,199645-,"66,481.97",Y
Crown Prosecution Service ,27/09/23,IT services,CFO Commercial,Gartner UK Limited Egham,20127061,"27,240.00",Y
Crown Prosecution Service ,27/09/23,Crown Court Graduated Fee Scheme,OCSAU,23 Essex Street Chambers,205800-LWI,"30,193.20",Y
Crown Prosecution Service ,27/09/23,IT services,ICT Network Services,Vodafone Ltd formerly Cable and Wireless Milton Keynes,4036084,"34,335.79",Y
Crown Prosecution Service ,27/09/23,Crown Court Graduated Fee Scheme,West Midlands Complex Casework Unit,No 5 Fountain Court Chambers,836190/MH/,"29,574.36",Y
Crown Prosecution Service ,27/09/23,UK Hotels,DID Central Leadership Team,Clarity Travel Management,CPSHQ170923,691.86,Y
Crown Prosecution Service ,27/09/23,UK National rail travel,PF HR Business Management,Clarity Travel Management,CPSHQ170923,64.50,
Crown Prosecution Service ,27/09/23,UK Hotels,Corporate Communication,Clarity Travel Management,CPSHQ170923,306.00,Y
Crown Prosecution Service ,27/09/23,UK Hotels,Chief Finance Officer,Clarity Travel Management,CPSHQ170923,105.49,Y
Crown Prosecution Service ,27/09/23,UK Hotels,Operational Business Support,Clarity Travel Management,CPSHQ170923,333.31,Y
Crown Prosecution Service ,27/09/23,UK Hotels,CFO Finance Operations,Clarity Travel Management,CPSHQ170923,151.00,Y
Crown Prosecution Service ,27/09/23,UK Hotels,DID DTS Change,Clarity Travel Management,CPSHQ170923,795.08,Y
Crown Prosecution Service ,27/09/23,UK Hotels,CFO Strategic Financial Planning,Clarity Travel Management,CPSHQ170923,234.78,Y
Crown Prosecution Service ,27/09/23,UK Hotels,PF HR Systems and Information,Clarity Travel Management,CPSHQ170923,154.02,Y
Crown Prosecution Service ,27/09/23,UK Hotels,Strategy and Policy,Clarity Travel Management,CPSHQ170923,78.00,Y
Crown Prosecution Service ,27/09/23,UK Hotels,Operational Change,Clarity Travel Management,CPSHQ170923,190.00,Y
Crown Prosecution Service ,27/09/23,UK Hotels,Central Legal Training Team,Clarity Travel Management,CPSHQ170923,419.79,Y
Crown Prosecution Service ,27/09/23,UK Hotels,DID Security and Information,Clarity Travel Management,CPSHQ170923,"2,470.39",Y
Crown Prosecution Service ,27/09/23,UK Hotels,DTUS,Clarity Travel Management,CPSHQ170923,133.00,Y
Crown Prosecution Service ,27/09/23,UK Hotels,Permanent Transfer Costs,Clarity Travel Management,CPSHQ170923,79.80,Y
Crown Prosecution Service ,27/09/23,UK Hotels,Director of Legal Services,Clarity Travel Management,CPSHQ170923,348.60,Y
Crown Prosecution Service ,27/09/23,UK Hotels,PF Learning and Development General,Clarity Travel Management,CPSHQ170923,82.00,Y
Crown Prosecution Service ,27/09/23,UK Hotels,CFO Commercial,Clarity Travel Management,CPSHQ170923,70.53,Y
Crown Prosecution Service ,27/09/23,UK Hotels,DID DTS Technology,Clarity Travel Management,CPSHQ170923,934.81,Y
Crown Prosecution Service ,27/09/23,UK Air travel,DID DTS Change,Clarity Travel Management,CPSHQ170923,88.00,Y
Crown Prosecution Service ,27/09/23,UK National rail travel,Permanent Transfer Costs,Clarity Travel Management,CPSHQ170923,483.40,
Crown Prosecution Service ,27/09/23,UK National rail travel,Central Operational Training,Clarity Travel Management,CPSHQ170923,"1,534.80",
Crown Prosecution Service ,27/09/23,UK National rail travel,CFO Estates,Clarity Travel Management,CPSHQ170923,349.40,
Crown Prosecution Service ,27/09/23,UK National rail travel,PF Resourcing,Clarity Travel Management,CPSHQ170923,"1,062.60",
Crown Prosecution Service ,27/09/23,UK National rail travel,CFO Strategic Financial Planning,Clarity Travel Management,CPSHQ170923,320.50,
Crown Prosecution Service ,27/09/23,UK National rail travel,DID DTS Technology,Clarity Travel Management,CPSHQ170923,"1,535.30",
Crown Prosecution Service ,27/09/23,UK National rail travel,CFO Commercial,Clarity Travel Management,CPSHQ170923,"1,272.90",
Crown Prosecution Service ,27/09/23,UK National rail travel,Central Legal Training Team,Clarity Travel Management,CPSHQ170923,520.90,
Crown Prosecution Service ,27/09/23,UK National rail travel,PF People and Business Change,Clarity Travel Management,CPSHQ170923,"2,424.10",
Crown Prosecution Service ,27/09/23,UK National rail travel,Compliance and Assurance,Clarity Travel Management,CPSHQ170923,"1,847.60",
Crown Prosecution Service ,27/09/23,UK National rail travel,Court Business Unit,Clarity Travel Management,CPSHQ170923,108.70,
Crown Prosecution Service ,27/09/23,UK National rail travel,DID Security and Information,Clarity Travel Management,CPSHQ170923,"2,724.50",
Crown Prosecution Service ,27/09/23,UK National rail travel,DID Central Leadership Team,Clarity Travel Management,CPSHQ170923,"2,441.10",
Crown Prosecution Service ,27/09/23,UK National rail travel,PF HR Business Partnering,Clarity Travel Management,CPSHQ170923,189.70,
Crown Prosecution Service ,27/09/23,UK National rail travel,PF Learning and Development General,Clarity Travel Management,CPSHQ170923,"1,610.20",
Crown Prosecution Service ,27/09/23,UK National rail travel,DID Operational Process,Clarity Travel Management,CPSHQ170923,"1,062.30",
Crown Prosecution Service ,27/09/23,UK National rail travel,CFO Fin System Change and Costings,Clarity Travel Management,CPSHQ170923,127.00,
Crown Prosecution Service ,27/09/23,UK National rail travel,Chief Finance Officer,Clarity Travel Management,CPSHQ170923,337.10,
Crown Prosecution Service ,27/09/23,UK National rail travel,Strategy and Policy,Clarity Travel Management,CPSHQ170923,"1,154.45",
Crown Prosecution Service ,27/09/23,UK National rail travel,CFO Financial Reporting,Clarity Travel Management,CPSHQ170923,69.00,
Crown Prosecution Service ,27/09/23,UK National rail travel,PF HR Operations,Clarity Travel Management,CPSHQ170923,230.20,
Crown Prosecution Service ,27/09/23,UK National rail travel,Private Office,Clarity Travel Management,CPSHQ170923,975.90,
Crown Prosecution Service ,27/09/23,UK National rail travel,PF Analytics and Workforce Plan,Clarity Travel Management,CPSHQ170923,105.50,
Crown Prosecution Service ,27/09/23,UK National rail travel,Director of Legal Services,Clarity Travel Management,CPSHQ170923,395.10,
Crown Prosecution Service ,27/09/23,UK National rail travel,Operational Performance,Clarity Travel Management,CPSHQ170923,726.00,
Crown Prosecution Service ,27/09/23,UK National rail travel,DID DTS Change,Clarity Travel Management,CPSHQ170923,"3,506.10",
Crown Prosecution Service ,27/09/23,UK National rail travel,Operational Business Support,Clarity Travel Management,CPSHQ170923,99.70,
Crown Prosecution Service ,27/09/23,UK National rail travel,PF Legal Training,Clarity Travel Management,CPSHQ170923,"1,571.70",
Crown Prosecution Service ,27/09/23,UK National rail travel,Corporate Communication,Clarity Travel Management,CPSHQ170923,961.10,
Crown Prosecution Service ,27/09/23,UK Hotels,PF People and Business Change,Clarity Travel Management,CPSHQ170923,177.01,Y
Crown Prosecution Service ,28/09/23,Short term leases from 2 to 12 months: Property,Estate and FM: Programme,Government Property Agency London,00000001/28489,"8,750.00",
Crown Prosecution Service ,28/09/23,Property management fees,Estate and FM: Programme,Government Property Agency London,00000001/28489,"5,413.37",Y
Crown Prosecution Service ,28/09/23,National non domestic rates,Estate and FM: Programme,Government Property Agency London,00000001/28489,"3,493.00",
Crown Prosecution Service ,28/09/23,Landlord service charge,Estate and FM: Programme,Government Property Agency London,00000001/28489,"7,512.08",
Crown Prosecution Service ,28/09/23,Property management fees,Estate and FM: Programme,Government Property Agency London,00000001/28491,"4,506.00",Y
Crown Prosecution Service ,28/09/23,Landlord service charge,Estate and FM: Programme,Government Property Agency London,00000001/28491,"18,659.77",
Crown Prosecution Service ,28/09/23,Short term leases from 2 to 12 months: Property,Estate and FM: Programme,Government Property Agency London,00000001/28491,"6,002.47",
Crown Prosecution Service ,28/09/23,National non domestic rates,Estate and FM: Programme,Government Property Agency London,00000001/28491,"4,156.00",
Crown Prosecution Service ,28/09/23,Property management fees,Estate and FM: Programme,Government Property Agency London,00000001/28492,"4,506.00",Y
Crown Prosecution Service ,28/09/23,National non domestic rates,Estate and FM: Programme,Government Property Agency London,00000001/28492,"3,324.59",
Crown Prosecution Service ,28/09/23,Lease liability non current lease payments,Balance Sheet,Government Property Agency London,00000001/28492,"6,444.25",
Crown Prosecution Service ,28/09/23,Landlord service charge,Estate and FM: Programme,Government Property Agency London,00000001/28492,"23,277.00",
Crown Prosecution Service ,28/09/23,Other managed/contractor services,PF HR Business Management,PA Consulting Services Limited,0000026805,"38,400.00",Y
Crown Prosecution Service ,28/09/23,Crown Court Graduated Fee Scheme,South West Crown Court,Broadway House Chambers,300484-TKKC,"28,628.10",Y
Crown Prosecution Service ,28/09/23,Crown Court Graduated Fee Scheme,North West Crown Court Hub,18 St John Street - Chambers of Peter Birkett QC,300941-1/MABKC,"28,293.60",Y
Crown Prosecution Service ,28/09/23,External legal advice - Civil litigation,Other Corporate Programme Payments,Government Legal Department,532134,"75,788.10",Y
Crown Prosecution Service ,28/09/23,Crown Court Graduated Fee Scheme,West Midlands Complex Casework Unit,St Philips Chambers,692066 BW T,"43,940.22",Y
Crown Prosecution Service ,28/09/23,Other publicity and media costs,Press Office,Agent Marketing Ltd Liverpool,INV-5905,"58,285.08",Y
Crown Prosecution Service ,28/09/23,Other Staff Costs,Other Corporate Admin Payments,Reward Gateway (UK) Ltd,UK100997SI,"40,000.00",
Crown Prosecution Service ,29/09/23,Crown Court Graduated Fee Scheme,South East Complex Casework Unit,6 Pump Court The Chambers of Mr Stephen Hockman,162855/,"34,403.72",Y
Crown Prosecution Service ,29/09/23,Crown Court Graduated Fee Scheme,East Midlands Complex Casework Unit,36 Bedford Row,205912-Trial 10.7.23,"32,581.20",Y
Crown Prosecution Service ,29/09/23,IT non capital software licences,Legal Reference and ICT Licenses,Pluralsight LLC Utah,INV12208372,"38,641.94",
